fUST/lending_fUST_20250518
["ID","MTS","AMOUNT","RATE_DAILY","PERIOD"]
[361352081,1747507852850,-450.0,0.00014383,2]
[361352082,1747507852859,-450.0,0.00014383,2]
[361352083,1747507852870,-468.75,0.00014383,2]
[361352084,1747507852880,-450.0,0.00014383,2]
[361352085,1747507852889,-450.0,0.00014383,2]
[361352086,1747507852898,-450.0,0.00014383,2]
[361352087,1747507852907,-450.0,0.00014383,2]
[361352088,1747507852916,-450.0,0.00014383,2]
[361352089,1747507852926,-585.66,0.00014383,2]
[361352090,1747507852935,-450.0,0.00014383,2]
[361352091,1747507852943,-450.0,0.00014383,2]
[361352092,1747507852953,-474.44,0.00014383,2]
[361352093,1747507852962,-333.52,0.00014383,2]
[361352094,1747507852970,-437.2,0.00014383,2]
[361352095,1747507852980,-1191.07,0.00014383,2]
[361352096,1747507852989,-450.0,0.00014383,2]
[361352097,1747507852998,-450.0,0.00014383,2]
[361352098,1747507853007,-150.0,0.00014383,2]
[361352099,1747507853016,-450.0,0.00014383,2]
[361352100,1747507853025,-164.39189558,0.00014383,2]
[361352101,1747507853035,-450.0,0.00014383,2]
[361352102,1747507853044,-450.0,0.00014383,2]
[361352103,1747507853054,-403.42,0.00014383,2]
[361352104,1747507853067,-450.0,0.00014383,2]
[361352105,1747507853076,-706.83,0.00014383,2]
[361352106,1747507853085,-500.0,0.00014388,2]
[361352107,1747507853095,-500.0,0.00014388,2]
[361352108,1747507853105,-500.0,0.00014388,2]
[361352109,1747507853115,-500.0,0.00014388,2]
[361352110,1747507853124,-500.0,0.00014388,2]
[361352111,1747507853134,-160.0,0.0001439,2]
[361352112,1747507853143,-160.0,0.0001439,2]
[361352113,1747507853154,-212.29844686,0.0001439,2]
[361352114,1747507853164,-160.0,0.0001439,2]
[361352115,1747507853274,-160.0,0.0001439,2]
[361352116,1747507853285,-314.40244118,0.0001439,2]
[361352117,1747507853295,-422.46777649,0.0001439,2]
[361352118,1747507853304,-160.0,0.0001439,2]
[361352119,1747507853312,-500.0,0.0001439,2]
[361352120,1747507853322,-500.0,0.0001439,2]
[361352121,1747507853331,-500.0,0.0001439,2]
[361352122,1747507853340,-502.11224736,0.0001439,2]
[361352123,1747507853351,-153.38963803,0.0001439,2]
[361352124,1747507853362,-500.8467201,0.0001439,2]
[361352125,1747507853372,-160.97367884,0.0001439,2]
[361352126,1747507853382,-500.22816139,0.0001439,2]
[361352127,1747507853392,-500.0,0.0001439,2]
[361352128,1747507853402,-500.0,0.0001439,2]
[361352129,1747507853411,-500.0,0.0001439,2]
[361352130,1747507853420,-500.0,0.0001439,2]
[361352131,1747507853430,-500.0,0.0001439,2]
[361352132,1747507853440,-500.0,0.00014399,2]
[361352133,1747507853451,-500.0,0.00014399,2]
[361352134,1747507853461,-500.0,0.00014399,2]
[361352135,1747507853470,-500.0,0.00014399,2]
[361352136,1747507853480,-151.0,0.000144,2]
[361352137,1747507853489,-500.0,0.00014414,2]
[361352138,1747507853499,-1000.0,0.00014421,2]
[361352139,1747507853508,-500.0,0.00014421,2]
[361352140,1747507853518,-500.0,0.00014421,2]
[361352141,1747507853527,-500.0,0.00014424,2]
[361352142,1747507853537,-500.0,0.00014428,2]
[361352143,1747507853546,-500.0,0.00014468,2]
[361352144,1747507853556,-500.0,0.00014468,2]
[361352145,1747507853565,-500.0,0.00014468,2]
[361352146,1747507853575,-504.69069577,0.00014486,2]
[361352147,1747507853585,-500.0,0.00014486,2]
[361352148,1747507853594,-151.0,0.000145,2]
[361352149,1747507853607,-450.0,0.0001452,2]
[361352150,1747507853616,-450.0,0.0001452,2]
[361352151,1747507853626,-450.0,0.0001452,2]
[361352152,1747507853636,-450.0,0.0001452,2]
[361352153,1747507853645,-450.0,0.0001452,2]
[361352154,1747507853655,-528.01,0.0001452,2]
[361352155,1747507853664,-578.85,0.0001452,2]
[361352156,1747507853673,-450.0,0.0001452,2]
[361352157,1747507853682,-450.0,0.0001452,2]
[361352158,1747507853691,-450.0,0.0001452,2]
[361352159,1747507853700,-450.0,0.0001452,2]
[361352160,1747507853710,-450.0,0.0001452,2]
[361352161,1747507853720,-450.0,0.0001452,2]
[361352162,1747507853729,-450.0,0.0001452,2]
[361352163,1747507853738,-450.0,0.0001452,2]
[361352164,1747507853748,-572.33,0.0001452,2]
[361352165,1747507853757,-450.0,0.0001452,2]
[361352166,1747507853766,-450.0,0.0001452,2]
[361352167,1747507853775,-450.0,0.0001452,2]
[361352168,1747507853784,-450.0,0.0001452,2]
[361352169,1747507853793,-410.8,0.0001452,2]
[361352170,1747507853802,-450.0,0.0001452,2]
[361352171,1747507853811,-450.0,0.0001452,2]
[361352172,1747507853821,-494.65,0.0001452,2]
[361352173,1747507853830,-450.0,0.0001452,2]
[361352174,1747507853839,-466.71,0.0001452,2]
[361352175,1747507853849,-425.05,0.0001452,2]
[361352176,1747507853858,-450.0,0.0001452,2]
[361352177,1747507853868,-450.0,0.0001452,2]
[361352178,1747507853876,-450.0,0.0001452,2]
[361352179,1747507853885,-450.0,0.0001452,2]
[361352180,1747507853894,-450.0,0.0001452,2]
[361352181,1747507853903,-450.0,0.0001452,2]
[361352182,1747507853913,-216.89,0.0001452,2]
[361352183,1747507853922,-450.0,0.0001452,2]
[361352184,1747507853931,-450.0,0.0001452,2]
[361352185,1747507853940,-450.0,0.0001452,2]
[361352186,1747507853949,-450.0,0.0001452,2]
[361352187,1747507853958,-450.0,0.0001452,2]
[361352188,1747507853968,-157.98,0.0001452,2]
[361352189,1747507853978,-450.0,0.0001452,2]
[361352190,1747507853987,-223.16,0.0001452,2]
[361352191,1747507853996,-404.71141754,0.0001452,2]
[361352192,1747507854006,-450.0,0.0001452,2]
[361352193,1747507854015,-836.01,0.0001452,2]
[361352194,1747507854025,-450.0,0.0001452,2]
[361352195,1747507854034,-503.97,0.0001452,2]
[361352196,1747507854043,-450.0,0.0001452,2]
[361352197,1747507854052,-450.0,0.0001452,2]
[361352198,1747507854064,-450.0,0.0001452,2]
[361352199,1747507854074,-450.0,0.0001452,2]
[361352200,1747507854083,-466.87,0.0001452,2]
[361352201,1747507854092,-1296.09,0.0001452,2]
[361352202,1747507854103,-450.0,0.0001452,2]
[361352203,1747507854112,-220.29,0.0001452,2]
[361352204,1747507854122,-450.0,0.0001452,2]
[361352205,1747507854131,-460.38,0.0001452,2]
[361352206,1747507854142,-450.0,0.0001452,2]
[361352207,1747507854152,-450.0,0.0001452,2]
[361352208,1747507854162,-450.0,0.0001452,2]
[361352209,1747507854173,-534.26,0.0001452,2]
[361352210,1747507854183,-582.65,0.0001452,2]
[361352211,1747507854192,-450.0,0.0001452,2]
[361352212,1747507854201,-450.0,0.0001452,2]
[361352213,1747507854210,-450.0,0.0001452,2]
[361352214,1747507854220,-1230.55,0.0001452,2]
[361352215,1747507854229,-450.0,0.0001452,2]
[361352216,1747507854238,-450.0,0.0001452,2]
[361352217,1747507854248,-450.0,0.0001452,2]
[361352218,1747507854257,-450.0,0.0001452,2]
[361352219,1747507854267,-320.24,0.0001452,2]
[361352220,1747507854276,-450.0,0.0001452,2]
[361352221,1747507854286,-450.0,0.0001452,2]
[361352222,1747507854295,-450.0,0.0001452,2]
[361352223,1747507854306,-334.66,0.0001452,2]
[361352224,1747507854315,-528.14,0.0001452,2]
[361352225,1747507854325,-185.94,0.0001452,2]
[361352226,1747507854335,-450.0,0.0001452,2]
[361352227,1747507854344,-450.0,0.0001452,2]
[361352228,1747507854355,-450.0,0.0001452,2]
[361352229,1747507854365,-2645.51,0.0001452,2]
[361352230,1747507854375,-446.16,0.0001452,2]
[361352231,1747507854384,-450.0,0.0001452,2]
[361352232,1747507854394,-523.66,0.0001452,2]
[361352233,1747507854404,-450.0,0.0001452,2]
[361352234,1747507854413,-1381.86,0.0001452,2]
[361352235,1747507854424,-2925.94,0.0001452,2]
[361352236,1747507854433,-450.0,0.0001452,2]
[361352237,1747507854443,-450.0,0.0001452,2]
[361352238,1747507854452,-525.0,0.0001452,2]
[361352239,1747507854462,-450.0,0.0001452,2]
[361352240,1747507854471,-652.38,0.0001452,2]
[361352241,1747507854480,-450.0,0.0001452,2]
[361352242,1747507854489,-450.0,0.0001452,2]
[361352243,1747507854499,-468.75,0.0001452,2]
[361352244,1747507854508,-450.0,0.0001452,2]
[361352245,1747507854518,-450.0,0.0001452,2]
[361352246,1747507854527,-450.0,0.0001452,2]
[361352247,1747507854536,-450.0,0.0001452,2]
[361352248,1747507854545,-277.73,0.0001452,2]
[361352249,1747507854555,-585.66,0.0001452,2]
[361352250,1747507854565,-417.55,0.0001452,2]
[361352251,1747507854574,-450.0,0.0001452,2]
[361352252,1747507854583,-474.44,0.0001452,2]
[361352253,1747507854592,-1191.07,0.0001452,2]
[361352254,1747507854602,-450.0,0.0001452,2]
[361352255,1747507854612,-450.0,0.0001452,2]
[361352256,1747507854621,-450.0,0.0001452,2]
[361352257,1747507854631,-450.0,0.0001452,2]
[361352258,1747507854641,-450.0,0.0001452,2]
[361352259,1747507854651,-300.75,0.0001452,2]
[361352260,1747507854661,-706.83,0.0001452,2]
[361352261,1747507854670,-500.0,0.00014581,2]
[361352262,1747507854680,-151.0,0.000146,2]
[361352263,1747507854690,-324.02,0.00014657,2]
[361352264,1747507854700,-450.0,0.00014657,2]
[361352265,1747507854709,-450.0,0.00014657,2]
[361352266,1747507854719,-450.0,0.00014657,2]
[361352267,1747507854728,-450.0,0.00014657,2]
[361352268,1747507854737,-450.0,0.00014657,2]
[361352269,1747507854746,-450.0,0.00014657,2]
[361352270,1747507854755,-450.0,0.00014657,2]
[361352271,1747507854764,-450.0,0.00014657,2]
[361352272,1747507854774,-450.0,0.00014657,2]
[361352273,1747507854783,-474.06867561,0.00014657,2]
[361352274,1747507854793,-450.0,0.00014657,2]
[361352275,1747507854803,-431.72,0.00014657,2]
[361352276,1747507854811,-546.29,0.00014657,2]
[361352277,1747507854821,-450.0,0.00014657,2]
[361352278,1747507854830,-450.0,0.00014657,2]
[361352279,1747507854839,-450.0,0.00014657,2]
[361352280,1747507854848,-534.08,0.00014657,2]
[361352281,1747507854856,-450.0,0.00014657,2]
[361352282,1747507854866,-450.0,0.00014657,2]
[361352284,1747507854875,-450.0,0.00014657,2]
[361352285,1747507854884,-450.0,0.00014657,2]
[361352286,1747507854893,-450.0,0.00014657,2]
[361352287,1747507854902,-450.0,0.00014657,2]
[361352288,1747507854911,-450.0,0.00014657,2]
[361352289,1747507854921,-450.0,0.00014657,2]
[361352290,1747507854931,-450.0,0.00014657,2]
[361352291,1747507854939,-450.0,0.00014657,2]
[361352292,1747507854948,-150.67,0.00014657,2]
[361352293,1747507854958,-363.17,0.00014657,2]
[361352294,1747507854967,-450.0,0.00014657,2]
[361352295,1747507854976,-450.0,0.00014657,2]
[361352296,1747507854985,-450.0,0.00014657,2]
[361352297,1747507854995,-836.01,0.00014657,2]
[361352298,1747507855005,-450.0,0.00014657,2]
[361352299,1747507855014,-503.97,0.00014657,2]
[361352300,1747507855027,-450.0,0.00014657,2]
[361352301,1747507855036,-450.0,0.00014657,2]
[361352302,1747507855046,-450.0,0.00014657,2]
[361352303,1747507855055,-450.0,0.00014657,2]
[361352304,1747507855071,-466.87,0.00014657,2]
[361352305,1747507855080,-1296.09,0.00014657,2]
[361352306,1747507855089,-450.0,0.00014657,2]
[361352307,1747507855099,-291.46,0.00014657,2]
[361352308,1747507855110,-460.38,0.00014657,2]
[361352309,1747507855120,-450.0,0.00014657,2]
[361352310,1747507855130,-450.0,0.00014657,2]
[361352311,1747507855139,-450.0,0.00014657,2]
[361352312,1747507855150,-210.83,0.00014657,2]
[361352313,1747507855160,-450.0,0.00014657,2]
[361352314,1747507855170,-450.0,0.00014657,2]
[361352315,1747507855180,-1230.55,0.00014657,2]
[361352316,1747507855189,-450.0,0.00014657,2]
[361352317,1747507855198,-450.0,0.00014657,2]
[361352318,1747507855208,-450.0,0.00014657,2]
[361352319,1747507855217,-450.0,0.00014657,2]
[361352320,1747507855227,-450.0,0.00014657,2]
[361352321,1747507855236,-450.0,0.00014657,2]
[361352322,1747507855246,-450.0,0.00014657,2]
[361352323,1747507855255,-528.14,0.00014657,2]
[361352324,1747507855264,-239.36711649,0.00014657,2]
[361352325,1747507855273,-450.0,0.00014657,2]
[361352326,1747507855282,-450.0,0.00014657,2]
[361352327,1747507855291,-2645.51,0.00014657,2]
[361352328,1747507855300,-450.0,0.00014657,2]
[361352329,1747507855309,-523.66,0.00014657,2]
[361352330,1747507855317,-1381.86,0.00014657,2]
[361352331,1747507855326,-450.0,0.00014657,2]
[361352332,1747507855336,-2925.94,0.00014657,2]
[361352333,1747507855442,-450.0,0.00014657,2]
[361352334,1747507855452,-450.0,0.00014657,2]
[361352335,1747507855461,-525.0,0.00014657,2]
[361352336,1747507855470,-450.0,0.00014657,2]
[361352337,1747507855479,-652.38,0.00014657,2]
[361352338,1747507855487,-450.0,0.00014657,2]
[361352339,1747507855496,-450.0,0.00014657,2]
[361352340,1747507855506,-468.75,0.00014657,2]
[361352341,1747507855516,-430.05,0.00014657,2]
[361352342,1747507855525,-450.0,0.00014657,2]
[361352343,1747507855534,-345.18,0.00014657,2]
[361352344,1747507855543,-450.0,0.00014657,2]
[361352345,1747507855552,-585.66,0.00014657,2]
[361352346,1747507855561,-450.0,0.00014657,2]
[361352347,1747507855570,-474.44,0.00014657,2]
[361352348,1747507855579,-1191.07,0.00014657,2]
[361352349,1747507855588,-450.0,0.00014657,2]
[361352350,1747507855597,-450.0,0.00014657,2]
[361352351,1747507855607,-450.0,0.00014657,2]
[361352352,1747507855616,-450.0,0.00014657,2]
[361352353,1747507855625,-450.0,0.00014657,2]
[361352354,1747507855635,-2026.53223721,0.00014693,2]
[361352355,1747507855643,-151.0,0.000147,2]
[361352356,1747507855652,-450.0,0.00014794,2]
[361352357,1747507855662,-153.91,0.00014794,2]
[361352358,1747507855671,-450.0,0.00014794,2]
[361352359,1747507855680,-450.0,0.00014794,2]
[361352360,1747507855689,-450.0,0.00014794,2]
[361352361,1747507855698,-450.0,0.00014794,2]
[361352362,1747507855707,-450.0,0.00014794,2]
[361352363,1747507855716,-450.0,0.00014794,2]
[361352364,1747507855725,-450.0,0.00014794,2]
[361352365,1747507855733,-450.0,0.00014794,2]
[361352366,1747507855743,-450.0,0.00014794,2]
[361352367,1747507855752,-450.0,0.00014794,2]
[361352368,1747507855761,-450.0,0.00014794,2]
[361352369,1747507855770,-450.0,0.00014794,2]
[361352370,1747507855779,-450.0,0.00014794,2]
[361352371,1747507855788,-450.0,0.00014794,2]
[361352372,1747507855797,-450.0,0.00014794,2]
[361352373,1747507855806,-450.0,0.00014794,2]
[361352374,1747507855815,-450.0,0.00014794,2]
[361352375,1747507855823,-450.0,0.00014794,2]
[361352376,1747507855833,-450.0,0.00014794,2]
[361352377,1747507855841,-450.0,0.00014794,2]
[361352378,1747507855851,-450.0,0.00014794,2]
[361352379,1747507855860,-450.0,0.00014794,2]
[361352380,1747507855870,-450.0,0.00014794,2]
[361352381,1747507855879,-450.0,0.00014794,2]
[361352382,1747507855889,-836.01,0.00014794,2]
[361352383,1747507855898,-529.69,0.00014794,2]
[361352384,1747507855907,-503.97,0.00014794,2]
[361352385,1747507855916,-450.0,0.00014794,2]
[361352386,1747507855925,-450.0,0.00014794,2]
[361352387,1747507855934,-450.0,0.00014794,2]
[361352388,1747507855943,-450.0,0.00014794,2]
[361352389,1747507855952,-466.87,0.00014794,2]
[361352390,1747507855961,-1296.09,0.00014794,2]
[361352391,1747507855971,-450.3,0.00014794,2]
[361352392,1747507855979,-460.38,0.00014794,2]
[361352393,1747507855988,-450.0,0.00014794,2]
[361352394,1747507855997,-498.06,0.00014794,2]
[361352395,1747507856007,-450.0,0.00014794,2]
[361352396,1747507856015,-396.8,0.00014794,2]
[361352397,1747507856025,-450.0,0.00014794,2]
[361352398,1747507856034,-1230.55,0.00014794,2]
[361352399,1747507856043,-450.0,0.00014794,2]
[361352400,1747507856052,-283.14,0.00014794,2]
[361352401,1747507856064,-450.0,0.00014794,2]
[361352402,1747507856073,-450.0,0.00014794,2]
[361352403,1747507856083,-450.0,0.00014794,2]
[361352404,1747507856092,-533.83,0.00014794,2]
[361352405,1747507856101,-450.0,0.00014794,2]
[361352406,1747507856110,-528.14,0.00014794,2]
[361352407,1747507856121,-450.0,0.00014794,2]
[361352408,1747507856130,-450.0,0.00014794,2]
[361352409,1747507856142,-2645.51,0.00014794,2]
[361352410,1747507856152,-450.0,0.00014794,2]
[361352411,1747507856161,-523.66,0.00014794,2]
[361352412,1747507856171,-1381.86,0.00014794,2]
[361352413,1747507856180,-450.0,0.00014794,2]
[361352414,1747507856189,-2925.94,0.00014794,2]
[361352415,1747507856198,-450.0,0.00014794,2]
[361352416,1747507856207,-450.0,0.00014794,2]
[361352417,1747507856217,-525.0,0.00014794,2]
[361352418,1747507856227,-450.0,0.00014794,2]
[361352419,1747507856236,-652.38,0.00014794,2]
[361352420,1747507856245,-187.74,0.00014794,2]
[361352421,1747507856254,-450.0,0.00014794,2]
[361352422,1747507856264,-20.32864174,0.00014794,2]
[361352423,1747507856785,-5000.0,0.00012083,2]
[361352424,1747507856794,-450.0,0.00013698,2]
[361352425,1747507856803,-450.0,0.00013698,2]
[361352426,1747507856813,-482.79,0.00013698,2]
[361352427,1747507856822,-151.0,0.00013698,2]
[361352428,1747507856831,-450.0,0.00013698,2]
[361352429,1747507856840,-450.0,0.00013698,2]
[361352430,1747507856849,-151.0,0.00013698,2]
[361352431,1747507856858,-450.0,0.00013698,2]
[361352432,1747507856867,-450.0,0.00013698,2]
[361352433,1747507856876,-400.0,0.00013698,2]
[361352434,1747507856885,-450.0,0.00013835,2]
[361352435,1747507856895,-450.0,0.00013835,2]
[361352436,1747507856904,-300.0,0.00013835,2]
[361352437,1747507856913,-706.83,0.00014657,2]
[361352438,1747507856923,-448.42135826,0.00014794,2]
[361352439,1747507856932,-450.0,0.00014794,2]
[361352440,1747507856942,-450.0,0.00014794,2]
[361352441,1747507856951,-585.66,0.00014794,2]
[361352442,1747507856960,-450.0,0.00014794,2]
[361352443,1747507856969,-474.44,0.00014794,2]
[361352444,1747507856978,-1191.07,0.00014794,2]
[361352445,1747507856988,-177.99,0.00014794,2]
[361352446,1747507856997,-450.0,0.00014794,2]
[361352447,1747507857007,-450.0,0.00014794,2]
[361352448,1747507857016,-450.0,0.00014794,2]
[361352449,1747507857025,-450.0,0.00014794,2]
[361352450,1747507857034,-706.83,0.00014794,2]
[361352451,1747507857043,-157.6,0.000149,2]
[361352452,1747507857052,-151.0,0.000149,2]
[361352453,1747507857065,-165.99443591,0.000149,2]
[361352454,1747507857074,-450.0,0.00014931,2]
[361352456,1747507857083,-450.0,0.00014931,2]
[361352457,1747507857092,-450.0,0.00014931,2]
[361352458,1747507857103,-450.0,0.00014931,2]
[361352459,1747507857213,-450.0,0.00014931,2]
[361352460,1747507857225,-450.0,0.00014931,2]
[361352461,1747507857235,-450.0,0.00014931,2]
[361352462,1747507857245,-238.36040934,0.00014931,2]
[361352463,1747507857254,-450.0,0.00014931,2]
[361352464,1747507857263,-186.42,0.00014931,2]
[361352465,1747507857271,-450.0,0.00014931,2]
[361352466,1747507857283,-450.0,0.00014931,2]
[361352467,1747507857295,-450.0,0.00014931,2]
[361352468,1747507857304,-450.0,0.00014931,2]
[361352469,1747507857314,-450.0,0.00014931,2]
[361352470,1747507857323,-450.0,0.00014931,2]
[361352471,1747507857332,-450.0,0.00014931,2]
[361352472,1747507857342,-225.43332664,0.00014931,2]
[361352473,1747507909715,500.0,0.00025682,30]
[361352474,1747507909960,350.0,0.00025682,30]
[361352475,1747507967374,688.9,0.00027397,120]
[361352490,1747508247156,-258.82831425,0.00011962,2]
[361352491,1747508248671,-207.1369735,0.00011962,2]
[361352492,1747508333322,164.901802,0.00027397,120]
[361352494,1747508616670,500.0,0.00025665,30]
[361352495,1747508616908,500.0,0.00025665,30]
[361352496,1747508617316,550.0,0.00025665,30]
[361352498,1747508781730,450.0,0.00027397,120]
[361352499,1747508830128,-1724.6448905,0.00011842,2]
[361352574,1747509032387,-208.04976776,0.00011724,2]
[361352576,1747509032402,-4791.95023224,0.00011724,2]
[361352578,1747509032412,-207.88272831,0.00011962,2]
[361352580,1747509032420,-1126.0,0.00012328,2]
[361352582,1747509032430,-273.05,0.00012329,2]
[361352584,1747509032439,-227.54,0.00012329,2]
[361352586,1747509032448,-189.62,0.00012329,2]
[361352588,1747509032457,-158.02,0.00012329,2]
[361352590,1747509032466,-790.11,0.00012329,2]
[361352592,1747509032475,-465.96,0.00012329,2]
[361352594,1747509032485,-680.57539938,0.00013598,2]
[361352596,1747509032495,-680.57539938,0.00013632,2]
[361352598,1747509032504,-680.57539938,0.00013667,2]
[361352600,1747509032513,-500.0,0.00013673,2]
[361352602,1747509032522,-572.59587971,0.00013673,2]
[361352604,1747509032532,-500.0,0.00013673,2]
[361352606,1747509032541,-495.30513333,0.00013673,2]
[361352608,1747509032550,-151.0,0.00013688,2]
[361352610,1747509032559,-207.4,0.00013688,2]
[361352611,1747509032569,-151.0,0.0001369,2]
[361352613,1747509032578,-194.08542105,0.0001369,2]
[361352615,1747509032587,-500.0,0.00013697,2]
[361352617,1747509032596,-500.0,0.00013697,2]
[361352619,1747509032605,-152.5327273,0.00013697,2]
[361352621,1747509032615,-500.0,0.00013697,2]
[361352623,1747509032624,-203.80801936,0.00013697,2]
[361352624,1747509032633,-500.0,0.00013697,2]
[361352626,1747509032642,-500.0,0.00013697,2]
[361352627,1747509032651,-151.0,0.00013698,2]
[361352628,1747509032660,-151.0,0.00013698,2]
[361352629,1747509032670,-151.0,0.00013698,2]
[361352630,1747509032679,-450.0,0.00013698,2]
[361352631,1747509032688,-400.0,0.00013698,2]
[361352632,1747509032697,-400.0,0.00013698,2]
[361352633,1747509032707,-400.0,0.00013698,2]
[361352634,1747509032716,-200.0,0.00013698,2]
[361352635,1747509032726,-450.0,0.00013698,2]
[361352636,1747509032736,-450.0,0.00013698,2]
[361352637,1747509032745,-400.0,0.00013698,2]
[361352638,1747509032754,-400.0,0.00013698,2]
[361352639,1747509032763,-400.0,0.00013698,2]
[361352640,1747509032772,-400.0,0.00013698,2]
[361352641,1747509032782,-251.60475038,0.00013698,2]
[361352642,1747509032791,-450.0,0.00013698,2]
[361352643,1747509032800,-400.0,0.00013698,2]
[361352644,1747509032809,-472.23462404,0.00013698,2]
[361352645,1747509032818,-450.0,0.00013698,2]
[361352646,1747509032827,-450.0,0.00013698,2]
[361352647,1747509032837,-400.0,0.00013698,2]
[361352648,1747509032846,-450.0,0.00013698,2]
[361352649,1747509032855,-507.49206568,0.00013698,2]
[361352650,1747509032865,-450.0,0.00013698,2]
[361352651,1747509032874,-450.0,0.00013698,2]
[361352652,1747509032882,-450.0,0.00013698,2]
[361352653,1747509032891,-450.0,0.00013698,2]
[361352654,1747509032900,-450.0,0.00013698,2]
[361352655,1747509032909,-450.0,0.00013698,2]
[361352656,1747509032918,-157.53076727,0.00013698,2]
[361352657,1747509032927,-450.0,0.00013698,2]
[361352658,1747509032937,-400.0,0.00013698,2]
[361352659,1747509032946,-400.0,0.00013698,2]
[361352660,1747509032955,-450.0,0.00013698,2]
[361352661,1747509032963,-450.0,0.00013698,2]
[361352662,1747509032972,-450.0,0.00013698,2]
[361352663,1747509032981,-450.0,0.00013698,2]
[361352664,1747509032990,-450.0,0.00013698,2]
[361352665,1747509032999,-580.98736879,0.00013698,2]
[361352666,1747509033008,-400.0,0.00013698,2]
[361352667,1747509033017,-222.47168529,0.00013698,2]
[361352668,1747509033027,-450.0,0.00013698,2]
[361352669,1747509033037,-450.0,0.00013698,2]
[361352670,1747509033046,-450.0,0.00013698,2]
[361352671,1747509033055,-450.0,0.00013698,2]
[361352672,1747509033065,-450.0,0.00013698,2]
[361352673,1747509033074,-1000.0,0.00013698,2]
[361352674,1747509033084,-450.0,0.00013698,2]
[361352675,1747509033093,-450.0,0.00013698,2]
[361352676,1747509033103,-450.0,0.00013698,2]
[361352677,1747509033113,-450.0,0.00013698,2]
[361352678,1747509033122,-450.0,0.00013698,2]
[361352679,1747509033131,-450.0,0.00013698,2]
[361352680,1747509033141,-450.0,0.00013698,2]
[361352681,1747509033151,-400.0,0.00013698,2]
[361352682,1747509033160,-207.29038792,0.00013698,2]
[361352683,1747509033170,-402.25958688,0.00013698,2]
[361352684,1747509033180,-450.0,0.00013698,2]
[361352685,1747509033189,-450.0,0.00013698,2]
[361352686,1747509033198,-450.0,0.00013698,2]
[361352687,1747509033207,-450.0,0.00013698,2]
[361352688,1747509033217,-400.0,0.00013698,2]
[361352689,1747509033227,-522.29543877,0.00013698,2]
[361352690,1747509033237,-400.0,0.00013698,2]
[361352691,1747509033247,-450.0,0.00013698,2]
[361352692,1747509033257,-400.0,0.00013698,2]
[361352693,1747509033267,-450.0,0.00013698,2]
[361352694,1747509033276,-450.0,0.00013698,2]
[361352695,1747509033286,-450.0,0.00013698,2]
[361352696,1747509033296,-450.0,0.00013698,2]
[361352697,1747509033306,-450.0,0.00013698,2]